[Event "*** Titled Tuesday Blitz"]
[Site "Chess.com"]
[Date "2020.05.26"]
[Round "8"]
[White "AEMEffi"]
[Black "QueenOfTactics90"]
[Result "0-1"]
[WhiteElo "2311"]
[BlackElo "1983"]
[TimeControl "180+1"]
[EndTime "11:41:13 PDT"]
[Termination "QueenOfTactics90 won on time"]

1. d4 {[%clk 0:03:00.9]} 1... Nf6 {[%clk 0:02:58]} 2. c4 {[%clk 0:03:01.4]} 2...
e6 {[%clk 0:02:58.3]} 3. Nc3 {[%clk 0:03:00.8]} 3... b6 {[%clk 0:02:58.4]} 4. e4
{[%clk 0:02:59.4]} 4... d6 {[%clk 0:02:55.7]} 5. Nf3 {[%clk 0:02:51.2]} 5... Bb7
{[%clk 0:02:55.6]} 6. Bd3 {[%clk 0:02:50.9]} 6... Nbd7 {[%clk 0:02:55.6]} 7. O-O
{[%clk 0:02:50.3]} 7... Be7 {[%clk 0:02:54.8]} 8. h3 {[%clk 0:02:45.4]} 8... O-O
{[%clk 0:02:54.6]} 9. b4 {[%clk 0:02:43.2]} 9... e5 {[%clk 0:02:54.6]} 10. d5
{[%clk 0:02:42.4]} 10... c6 {[%clk 0:02:51.5]} 11. Be3 {[%clk 0:02:37.6]} 11...
cxd5 {[%clk 0:02:50.7]} 12. cxd5 {[%clk 0:02:38.5]} 12... Rc8 {[%clk 0:02:48.2]}
13. Rc1 {[%clk 0:02:36.6]} 13... a6 {[%clk 0:02:42]} 14. Qe2 {[%clk 0:02:35.4]}
14... b5 {[%clk 0:02:41.4]} 15. a4 {[%clk 0:02:33]} 15... bxa4 {[%clk
0:02:39.6]} 16. Nxa4 {[%clk 0:02:29.8]} 16... Rxc1 {[%clk 0:02:38]} 17. Rxc1
{[%clk 0:02:30.7]} 17... a5 {[%clk 0:02:38.2]} 18. b5 {[%clk 0:02:26.5]} 18...
Qa8 {[%clk 0:02:28.2]} 19. Rc6 {[%clk 0:02:09.2]} 19... Bxc6 {[%clk 0:02:21.4]}
20. dxc6 {[%clk 0:02:10.1]} 20... Nc5 {[%clk 0:02:21.4]} 21. Nxc5 {[%clk
0:01:38.8]} 21... dxc5 {[%clk 0:02:21.4]} 22. Nxe5 {[%clk 0:01:39.4]} 22... a4
{[%clk 0:02:20.2]} 23. b6 {[%clk 0:01:39.1]} 23... a3 {[%clk 0:02:09.7]} 24. Qa2
{[%clk 0:01:39.1]} 24... Qa5 {[%clk 0:01:59.7]} 25. b7 {[%clk 0:01:27.4]} 25...
Bd6 {[%clk 0:01:55.2]} 26. Nc4 {[%clk 0:01:21.1]} 26... Qe1+ {[%clk 0:01:52.4]}
27. Bf1 {[%clk 0:01:21.7]} 27... Bb8 {[%clk 0:01:33.9]} 28. Qxa3 {[%clk
0:01:15.7]} 28... Nxe4 {[%clk 0:01:30.4]} 29. Qd3 {[%clk 0:01:06.8]} 29... Re8
{[%clk 0:01:23.4]} 30. Nb6 {[%clk 0:00:50.5]} 30... Nd6 {[%clk 0:01:06.9]} 31.
Nd7 {[%clk 0:00:44.2]} 31... c4 {[%clk 0:00:50.8]} 32. Qa3 {[%clk 0:00:17.4]}
32... Nb5 {[%clk 0:00:43.4]} 33. Qc5 {[%clk 0:00:17.4]} 33... Nc3 {[%clk
0:00:39.4]} 34. Nxb8 {[%clk 0:00:15.9]} 34... Ne2+ {[%clk 0:00:34.8]} 35. Kh2
{[%clk 0:00:15.7]} 35... Qxf1 {[%clk 0:00:34.8]} 36. f3 {[%clk 0:00:11.1]} 36...
Qe1 {[%clk 0:00:27.6]} 37. Bf2 {[%clk 0:00:10.4]} 37... Qd2 {[%clk 0:00:21.8]}
38. c7 {[%clk 0:00:06.2]} 38... Qf4+ {[%clk 0:00:20.6]} 39. g3 {[%clk
0:00:01.3]} 39... Qd2 {[%clk 0:00:11.7]} 0-1

[Event "*** Titled Tuesday Blitz"]
[Site "Chess.com"]
[Date "2020.05.26"]
[Round "8"]
[White "CarlosAlbornoz"]
[Black "MaxVavulin"]
[Result "1-0"]
[WhiteElo "2728"]
[BlackElo "2614"]
[TimeControl "180+1"]
[EndTime "11:41:14 PDT"]
[Termination "CarlosAlbornoz won on time"]

1. e4 {[%clk 0:03:00.9]} 1... e5 {[%clk 0:02:58.7]} 2. Nf3 {[%clk 0:03:00.3]}
2... Nc6 {[%clk 0:02:59.2]} 3. Bb5 {[%clk 0:03:00.5]} 3... a6 {[%clk 0:02:58.9]}
4. Ba4 {[%clk 0:03:00.7]} 4... Nge7 {[%clk 0:02:59.4]} 5. c3 {[%clk 0:03:00.1]}
5... g6 {[%clk 0:02:59.3]} 6. d4 {[%clk 0:03:00.1]} 6... exd4 {[%clk 0:02:59.6]}
7. cxd4 {[%clk 0:03:00.1]} 7... b5 {[%clk 0:02:59.8]} 8. Bc2 {[%clk 0:02:59.8]}
8... Bg7 {[%clk 0:02:59.4]} 9. O-O {[%clk 0:02:58.3]} 9... d6 {[%clk 0:02:58.8]}
10. h3 {[%clk 0:02:58]} 10... O-O {[%clk 0:02:58.3]} 11. Be3 {[%clk 0:02:57.6]}
11... Na5 {[%clk 0:02:52.5]} 12. b3 {[%clk 0:02:56.8]} 12... c5 {[%clk
0:02:51.5]} 13. Nbd2 {[%clk 0:02:56]} 13... Nac6 {[%clk 0:02:47]} 14. dxc5
{[%clk 0:02:53.2]} 14... Nb4 {[%clk 0:02:18]} 15. cxd6 {[%clk 0:02:24.4]} 15...
Nec6 {[%clk 0:02:08.1]} 16. e5 {[%clk 0:02:12.4]} 16... Nxc2 {[%clk 0:02:00.1]}
17. Qxc2 {[%clk 0:02:11.4]} 17... Nxe5 {[%clk 0:02:00.6]} 18. Nxe5 {[%clk
0:02:06.5]} 18... Bxe5 {[%clk 0:01:50.1]} 19. Qc6 {[%clk 0:02:03.6]} 19... Be6
{[%clk 0:01:25.4]} 20. Ne4 {[%clk 0:01:53.8]} 20... Rc8 {[%clk 0:01:09]} 21.
Qxa6 {[%clk 0:01:52.7]} 21... Bd5 {[%clk 0:01:09.1]} 22. Qxb5 {[%clk 0:01:43.4]}
22... Bxe4 {[%clk 0:00:13.8]} 23. Qxe5 {[%clk 0:01:42.1]} 23... Re8 {[%clk
0:00:14.5]} 24. Qd4 {[%clk 0:01:40]} 24... Bc6 {[%clk 0:00:12.7]} 25. Rac1
{[%clk 0:01:34.2]} 25... Re4 {[%clk 0:00:11.5]} 26. Qb6 {[%clk 0:01:28.4]} 26...
Qd7 {[%clk 0:00:11.7]} 27. Qc5 {[%clk 0:01:21.8]} 27... Re6 {[%clk 0:00:09.5]}
28. Rfd1 {[%clk 0:01:19]} 28... h5 {[%clk 0:00:05.7]} 29. Qd4 {[%clk 0:00:55]}
29... Kh7 {[%clk 0:00:05.4]} 30. Bf4 {[%clk 0:00:54.2]} 30... Rce8 {[%clk
0:00:04.4]} 31. Be3 {[%clk 0:00:50]} 31... Re4 {[%clk 0:00:02.8]} 32. Qc5 {[%clk
0:00:48.5]} 32... Rc8 {[%clk 0:00:03.2]} 33. Rc4 {[%clk 0:00:43.3]} 33... Ree8
{[%clk 0:00:03]} 34. Qd4 {[%clk 0:00:41.7]} 34... Bb7 {[%clk 0:00:01.4]} 35.
Rxc8 {[%clk 0:00:40.7]} 35... Rxc8 {[%clk 0:00:01.8]} 36. Rc1 {[%clk 0:00:39.8]}
36... Rxc1+ {[%clk 0:00:01.1]} 37. Bxc1 {[%clk 0:00:40.7]} 37... Qc6 {[%clk
0:00:01.6]} 38. f3 {[%clk 0:00:26.8]} 38... Qxc1+ {[%clk 0:00:02.1]} 39. Kh2
{[%clk 0:00:27.7]} 39... Bc8 {[%clk 0:00:02.3]} 40. d7 {[%clk 0:00:26.3]} 1-0

[Event "*** Titled Tuesday Blitz"]
[Site "Chess.com"]
[Date "2020.05.26"]
[Round "8"]
[White "lili_ani"]
[Black "Aleksandar-Topalov"]
[Result "0-1"]
[WhiteElo "2543"]
[BlackElo "2397"]
[TimeControl "180+1"]
[EndTime "11:41:16 PDT"]
[Termination "Aleksandar-Topalov won on time"]

1. e4 {[%clk 0:03:00.9]} 1... e6 {[%clk 0:02:59.9]} 2. Nf3 {[%clk 0:02:54.3]}
2... d5 {[%clk 0:02:58.6]} 3. exd5 {[%clk 0:02:54.1]} 3... exd5 {[%clk
0:02:58.4]} 4. d4 {[%clk 0:02:54.3]} 4... Bd6 {[%clk 0:02:58.7]} 5. c4 {[%clk
0:02:53.7]} 5... Nf6 {[%clk 0:02:57.7]} 6. Nc3 {[%clk 0:02:52.6]} 6... O-O
{[%clk 0:02:57.1]} 7. c5 {[%clk 0:02:46.5]} 7... Be7 {[%clk 0:02:56.7]} 8. Be3
{[%clk 0:02:37.8]} 8... b6 {[%clk 0:02:56.7]} 9. b4 {[%clk 0:02:36.4]} 9... a5
{[%clk 0:02:56.9]} 10. a3 {[%clk 0:02:36.2]} 10... axb4 {[%clk 0:02:55.9]} 11.
axb4 {[%clk 0:02:36.1]} 11... Rxa1 {[%clk 0:02:56.6]} 12. Qxa1 {[%clk
0:02:36.4]} 12... bxc5 {[%clk 0:02:57]} 13. bxc5 {[%clk 0:02:35.1]} 13... Bg4
{[%clk 0:02:55.4]} 14. Be2 {[%clk 0:02:33.6]} 14... Ne4 {[%clk 0:02:55]} 15. O-O
{[%clk 0:02:33.1]} 15... Nxc3 {[%clk 0:02:42.9]} 16. Qxc3 {[%clk 0:02:34]} 16...
Nc6 {[%clk 0:02:43.2]} 17. Bb5 {[%clk 0:02:12.2]} 17... Bxf3 {[%clk 0:02:34.5]}
18. Bxc6 {[%clk 0:02:12.2]} 18... Be4 {[%clk 0:02:34.5]} 19. f3 {[%clk
0:02:09.7]} 19... Bf5 {[%clk 0:02:34.3]} 20. Bf2 {[%clk 0:02:10]} 20... Bf6
{[%clk 0:02:32]} 21. Qb3 {[%clk 0:02:05]} 21... Be6 {[%clk 0:02:32]} 22. Ra1
{[%clk 0:02:04.4]} 22... Qb8 {[%clk 0:02:21.3]} 23. Qxb8 {[%clk 0:01:49.6]}
23... Rxb8 {[%clk 0:02:21.1]} 24. Kf1 {[%clk 0:01:39.7]} 24... g6 {[%clk
0:02:16.8]} 25. Ra8 {[%clk 0:01:34.7]} 25... Rxa8 {[%clk 0:02:15.9]} 26. Bxa8
{[%clk 0:01:35.6]} 26... Kf8 {[%clk 0:02:12.6]} 27. Ke2 {[%clk 0:01:34.9]} 27...
Ke7 {[%clk 0:02:13]} 28. Bc6 {[%clk 0:01:31.2]} 28... Bg5 {[%clk 0:01:57.3]} 29.
Bg3 {[%clk 0:01:11.8]} 29... Kd8 {[%clk 0:01:55]} 30. Kd3 {[%clk 0:01:09.5]}
30... Bf5+ {[%clk 0:01:53.9]} 31. Kc3 {[%clk 0:01:09.4]} 31... Be6 {[%clk
0:01:54.2]} 32. Be5 {[%clk 0:00:52.8]} 32... f6 {[%clk 0:01:52.3]} 33. Bg3
{[%clk 0:00:51.9]} 33... Be3 {[%clk 0:01:52.5]} 34. h3 {[%clk 0:00:47]} 34... g5
{[%clk 0:01:43.3]} 35. Bh2 {[%clk 0:00:45.2]} 35... h5 {[%clk 0:01:41.8]} 36. g4
{[%clk 0:00:45.2]} 36... h4 {[%clk 0:01:40.5]} 37. Kd3 {[%clk 0:00:41.5]} 37...
Bf2 {[%clk 0:01:39.7]} 38. Kc3 {[%clk 0:00:35.7]} 38... Kc8 {[%clk 0:01:31.2]}
39. Kd3 {[%clk 0:00:35.3]} 39... Kd8 {[%clk 0:01:31]} 40. Kc3 {[%clk 0:00:28.3]}
40... Kc8 {[%clk 0:01:28.6]} 41. f4 {[%clk 0:00:15.9]} 41... Bg3 {[%clk
0:01:24]} 42. f5 {[%clk 0:00:16.2]} 42... Bd7 {[%clk 0:01:12.7]} 43. Bxg3 {[%clk
0:00:05.4]} 43... Bxc6 {[%clk 0:01:12.4]} 44. Bh2 {[%clk 0:00:05.2]} 44... Bb5
{[%clk 0:01:12.6]} 45. Kd2 {[%clk 0:00:02.9]} 45... Bf1 {[%clk 0:01:12.7]} 46.
Ke3 {[%clk 0:00:03.2]} 46... Bxh3 {[%clk 0:01:12.4]} 47. Kf3 {[%clk 0:00:03.5]}
47... Kd7 {[%clk 0:01:08]} 48. Bg1 {[%clk 0:00:03.7]} 48... Kc6 {[%clk
0:01:01.5]} 49. Bh2 {[%clk 0:00:04.3]} 49... Bf1 {[%clk 0:00:58.4]} 50. Kf2
{[%clk 0:00:03.9]} 50... Bd3 {[%clk 0:00:55.7]} 51. Ke3 {[%clk 0:00:03.6]} 51...
Bc2 {[%clk 0:00:55.3]} 52. Ke2 {[%clk 0:00:03.6]} 52... Bb3 {[%clk 0:00:48.7]}
53. Bg1 {[%clk 0:00:03.4]} 53... Bc4+ {[%clk 0:00:43.9]} 54. Kf2 {[%clk
0:00:02.4]} 54... Bd3 {[%clk 0:00:42.6]} 55. Bh2 {[%clk 0:00:02.2]} 55... Be4
{[%clk 0:00:42.4]} 0-1

[Event "*** Titled Tuesday Blitz"]
[Site "Chess.com"]
[Date "2020.05.26"]
[Round "8"]
[White "mohamed-damaj"]
[Black "Konovalova_Vera"]
[Result "1-0"]
[WhiteElo "2298"]
[BlackElo "2155"]
[TimeControl "180+1"]
[EndTime "11:41:17 PDT"]
[Termination "mohamed-damaj won by checkmate"]

1. e4 {[%clk 0:03:00.9]} 1... c6 {[%clk 0:02:58.9]} 2. Nf3 {[%clk 0:02:59.5]}
2... d5 {[%clk 0:02:59.1]} 3. Nc3 {[%clk 0:02:59.9]} 3... dxe4 {[%clk
0:02:58.6]} 4. Nxe4 {[%clk 0:02:59.4]} 4... Bg4 {[%clk 0:02:57.7]} 5. Bc4 {[%clk
0:02:54.8]} 5... e6 {[%clk 0:02:56.5]} 6. c3 {[%clk 0:02:47.8]} 6... Nf6 {[%clk
0:02:52.3]} 7. Qe2 {[%clk 0:02:37.9]} 7... Nbd7 {[%clk 0:02:42.4]} 8. d4 {[%clk
0:02:33.6]} 8... Be7 {[%clk 0:02:37.1]} 9. O-O {[%clk 0:02:12.1]} 9... O-O
{[%clk 0:02:25.7]} 10. Re1 {[%clk 0:02:10.9]} 10... e5 {[%clk 0:02:12.3]} 11. h3
{[%clk 0:01:03.9]} 11... Bxf3 {[%clk 0:01:55.9]} 12. Qxf3 {[%clk 0:01:02.5]}
12... exd4 {[%clk 0:01:50.8]} 13. cxd4 {[%clk 0:01:01.2]} 13... Nxe4 {[%clk
0:01:43.2]} 14. Qxe4 {[%clk 0:00:58.2]} 14... Bd6 {[%clk 0:01:41.7]} 15. d5
{[%clk 0:00:50.3]} 15... cxd5 {[%clk 0:01:32.1]} 16. Qxd5 {[%clk 0:00:45.5]}
16... Nb6 {[%clk 0:01:23.9]} 17. Qe4 {[%clk 0:00:44.5]} 17... Rc8 {[%clk
0:01:15.3]} 18. Bb3 {[%clk 0:00:41.7]} 18... Qd7 {[%clk 0:01:10.7]} 19. Be3
{[%clk 0:00:37.1]} 19... Bb4 {[%clk 0:01:02.8]} 20. Red1 {[%clk 0:00:34.6]}
20... Qb5 {[%clk 0:00:51.6]} 21. Qxb7 {[%clk 0:00:29.5]} 21... Ra8 {[%clk
0:00:34.7]} 22. Rd5 {[%clk 0:00:18.5]} 22... Qe8 {[%clk 0:00:26.2]} 23. Bxb6
{[%clk 0:00:18]} 23... axb6 {[%clk 0:00:25.5]} 24. Qxb6 {[%clk 0:00:18]} 24...
Rb8 {[%clk 0:00:25.5]} 25. Qd4 {[%clk 0:00:16.9]} 25... Qe7 {[%clk 0:00:20.5]}
26. Rd7 {[%clk 0:00:15.7]} 26... Qg5 {[%clk 0:00:20.4]} 27. Qd5 {[%clk
0:00:14.1]} 27... Qf6 {[%clk 0:00:18.8]} 28. Rd1 {[%clk 0:00:12.8]} 28... Ba5
{[%clk 0:00:18.2]} 29. Qxa5 {[%clk 0:00:12.1]} 29... Qxb2 {[%clk 0:00:17]} 30.
Qd2 {[%clk 0:00:11.9]} 30... Qf6 {[%clk 0:00:16.8]} 31. Qd5 {[%clk 0:00:11.7]}
31... Qg6 {[%clk 0:00:15.5]} 32. Qd3 {[%clk 0:00:09.7]} 32... Qf6 {[%clk
0:00:15.3]} 33. Qf3 {[%clk 0:00:10]} 33... Qg6 {[%clk 0:00:14.4]} 34. g3 {[%clk
0:00:10]} 34... Qh6 {[%clk 0:00:13.5]} 35. Kg2 {[%clk 0:00:09.8]} 35... Qg6
{[%clk 0:00:13.3]} 36. R1d4 {[%clk 0:00:10.1]} 36... Rbe8 {[%clk 0:00:12.1]} 37.
Rg4 {[%clk 0:00:10.3]} 37... Qh5 {[%clk 0:00:09.3]} 38. h4 {[%clk 0:00:09.3]}
38... Qh6 {[%clk 0:00:07.7]} 39. Rxf7 {[%clk 0:00:08.4]} 39... g6 {[%clk
0:00:04.4]} 40. Rxf8+ {[%clk 0:00:07.1]} 40... Kg7 {[%clk 0:00:03.7]} 41. Qf7#
{[%clk 0:00:07.4]} 1-0

[Event "*** Titled Tuesday Blitz"]
[Site "Chess.com"]
[Date "2020.05.26"]
[Round "8"]
[White "SGchess01"]
[Black "BEEkhishig"]
[Result "0-1"]
[WhiteElo "2751"]
[BlackElo "2644"]
[TimeControl "180+1"]
[EndTime "11:41:18 PDT"]
[Termination "BEEkhishig won by resignation"]

1. Nf3 {[%clk 0:03:00.9]} 1... Nf6 {[%clk 0:02:58.5]} 2. c4 {[%clk 0:02:55.7]}
2... g6 {[%clk 0:02:58.5]} 3. Nc3 {[%clk 0:02:50]} 3... Bg7 {[%clk 0:02:59.4]}
4. g3 {[%clk 0:02:46.5]} 4... O-O {[%clk 0:03:00.3]} 5. Bg2 {[%clk 0:02:46.9]}
5... d6 {[%clk 0:02:59.8]} 6. O-O {[%clk 0:02:47.4]} 6... c5 {[%clk 0:02:51.9]}
7. d4 {[%clk 0:02:48.3]} 7... Nc6 {[%clk 0:02:49.1]} 8. dxc5 {[%clk 0:02:47.6]}
8... dxc5 {[%clk 0:02:48.9]} 9. Be3 {[%clk 0:02:48.2]} 9... Qb6 {[%clk
0:02:09.3]} 10. Na4 {[%clk 0:02:40]} 10... Qa6 {[%clk 0:02:03.2]} 11. Nxc5
{[%clk 0:02:04]} 11... Qxc4 {[%clk 0:02:01.4]} 12. Nd2 {[%clk 0:01:38.8]} 12...
Qg4 {[%clk 0:01:54.8]} 13. Rc1 {[%clk 0:01:34.4]} 13... Qh5 {[%clk 0:01:49.3]}
14. f3 {[%clk 0:01:22.1]} 14... Rd8 {[%clk 0:01:39]} 15. Qb3 {[%clk 0:01:16.9]}
15... Nd5 {[%clk 0:01:29.4]} 16. Bf2 {[%clk 0:01:12.1]} 16... Nf4 {[%clk
0:01:27.8]} 17. gxf4 {[%clk 0:01:01.6]} 17... Rxd2 {[%clk 0:01:26.7]} 18. Ne4
{[%clk 0:01:01.1]} 18... Rxb2 {[%clk 0:01:19.4]} 19. Qa3 {[%clk 0:00:59]} 19...
Be6 {[%clk 0:01:12]} 20. Rfd1 {[%clk 0:00:54.8]} 20... Rxa2 {[%clk 0:01:05.8]}
21. Qe3 {[%clk 0:00:54.5]} 21... Qb5 {[%clk 0:00:55.2]} 22. Bf1 {[%clk
0:00:48.6]} 22... a5 {[%clk 0:00:48.2]} 23. Rb1 {[%clk 0:00:43.9]} 23... Rb2
{[%clk 0:00:38.7]} 24. Rxb2 {[%clk 0:00:41.9]} 24... Bxb2 {[%clk 0:00:39.6]} 25.
Nc5 {[%clk 0:00:39.2]} 25... Bc4 {[%clk 0:00:31.2]} 26. Rd7 {[%clk 0:00:36.4]}
26... b6 {[%clk 0:00:28.3]} 27. Ne4 {[%clk 0:00:31.6]} 27... a4 {[%clk
0:00:26.6]} 28. Rb7 {[%clk 0:00:31.5]} 28... a3 {[%clk 0:00:25.5]} 29. Rxb6
{[%clk 0:00:31.6]} 29... a2 {[%clk 0:00:23.3]} 30. Rxb5 {[%clk 0:00:31.1]} 30...
Bxb5 {[%clk 0:00:24.2]} 31. Qc5 {[%clk 0:00:27.9]} 31... Ba4 {[%clk 0:00:22.2]}
32. f5 {[%clk 0:00:11.5]} 32... a1=Q {[%clk 0:00:21.4]} 33. fxg6 {[%clk
0:00:12]} 33... hxg6 {[%clk 0:00:21.8]} 34. e3 {[%clk 0:00:10.7]} 34... Qa2
{[%clk 0:00:19.5]} 35. h4 {[%clk 0:00:08.6]} 35... Bg7 {[%clk 0:00:16.9]} 36. h5
{[%clk 0:00:08.9]} 36... Rc8 {[%clk 0:00:15.8]} 37. Bc4 {[%clk 0:00:08.6]} 37...
Bb3 {[%clk 0:00:15.3]} 38. hxg6 {[%clk 0:00:05.6]} 38... Bxc4 {[%clk 0:00:15]}
39. gxf7+ {[%clk 0:00:06.2]} 39... Bxf7 {[%clk 0:00:15.8]} 40. Qf5 {[%clk
0:00:06.1]} 40... Qe6 {[%clk 0:00:15.1]} 41. Qb5 {[%clk 0:00:04.2]} 41... Ne5
{[%clk 0:00:14.5]} 42. Ng5 {[%clk 0:00:03.9]} 42... Rc1+ {[%clk 0:00:14.1]} 43.
Kg2 {[%clk 0:00:04.1]} 43... Qd5 {[%clk 0:00:12.8]} 44. Qb7 {[%clk 0:00:04]}
44... Qxb7 {[%clk 0:00:11.3]} 0-1

[Event "*** Titled Tuesday Blitz"]
[Site "Chess.com"]
[Date "2020.05.26"]
[Round "8"]
[White "IMinTheWings"]
[Black "Chigorinetz"]
[Result "0-1"]
[WhiteElo "2144"]
[BlackElo "2514"]
[TimeControl "180+1"]
[EndTime "11:41:18 PDT"]
[Termination "Chigorinetz won on time"]

1. c4 {[%clk 0:03:00.9]} 1... g6 {[%clk 0:02:59.1]} 2. Nc3 {[%clk 0:03:01.3]}
2... Bg7 {[%clk 0:02:59.3]} 3. d4 {[%clk 0:03:00.9]} 3... d6 {[%clk 0:02:59.3]}
4. e4 {[%clk 0:02:59]} 4... e5 {[%clk 0:02:58.9]} 5. d5 {[%clk 0:02:57]} 5... a5
{[%clk 0:02:58.2]} 6. Be2 {[%clk 0:02:57]} 6... Na6 {[%clk 0:02:57.3]} 7. Be3
{[%clk 0:02:57.5]} 7... f5 {[%clk 0:02:56.7]} 8. exf5 {[%clk 0:02:55.6]} 8...
gxf5 {[%clk 0:02:56.7]} 9. Bh5+ {[%clk 0:02:45.9]} 9... Kf8 {[%clk 0:02:56.3]}
10. f4 {[%clk 0:02:45.9]} 10... Nf6 {[%clk 0:02:55]} 11. Be2 {[%clk 0:02:44.8]}
11... e4 {[%clk 0:02:48.4]} 12. Nh3 {[%clk 0:02:42.1]} 12... Qe7 {[%clk
0:02:44.5]} 13. O-O {[%clk 0:02:40.6]} 13... Bd7 {[%clk 0:02:42.6]} 14. Nf2
{[%clk 0:02:35.1]} 14... Kf7 {[%clk 0:02:36.6]} 15. Kh1 {[%clk 0:02:30.8]} 15...
b6 {[%clk 0:02:28.7]} 16. g4 {[%clk 0:02:11.7]} 16... fxg4 {[%clk 0:02:26.9]}
17. Nxg4 {[%clk 0:02:12.6]} 17... Rag8 {[%clk 0:02:17.8]} 18. Rg1 {[%clk
0:01:31.2]} 18... Nc5 {[%clk 0:02:00.8]} 19. Bxc5 {[%clk 0:01:19.1]} 19... bxc5
{[%clk 0:01:59.5]} 20. Qc2 {[%clk 0:00:59.9]} 20... Nxg4 {[%clk 0:01:50]} 21.
Bxg4 {[%clk 0:00:58.8]} 21... Bxg4 {[%clk 0:01:37.5]} 22. Rxg4 {[%clk
0:00:57.8]} 22... Bxc3 {[%clk 0:01:37.2]} 23. Rxg8 {[%clk 0:00:56.8]} 23... Rxg8
{[%clk 0:01:35.4]} 24. bxc3 {[%clk 0:00:54.2]} 24... Re8 {[%clk 0:00:59.3]} 25.
Rg1 {[%clk 0:00:39.5]} 25... Qf6 {[%clk 0:00:52.9]} 26. Qg2 {[%clk 0:00:31.5]}
26... e3 {[%clk 0:00:41.9]} 27. Qg4 {[%clk 0:00:26.3]} 27... e2 {[%clk
0:00:34.2]} 28. Qh5+ {[%clk 0:00:26.4]} 28... Kf8 {[%clk 0:00:31.1]} 29. Qxh7
{[%clk 0:00:26.2]} 29... Qf7 {[%clk 0:00:22.5]} 30. Qh6+ {[%clk 0:00:20.2]}
30... Ke7 {[%clk 0:00:20.4]} 31. Qh4+ {[%clk 0:00:20.8]} 31... Kd7 {[%clk
0:00:18.6]} 32. Qg4+ {[%clk 0:00:21.4]} 32... Kd8 {[%clk 0:00:17.9]} 33. Re1
{[%clk 0:00:20.5]} 33... Qe7 {[%clk 0:00:17.8]} 34. Kg1 {[%clk 0:00:19.7]} 34...
Qe3+ {[%clk 0:00:17.3]} 35. Kh1 {[%clk 0:00:20.3]} 35... Qe4+ {[%clk 0:00:16.7]}
36. Kg1 {[%clk 0:00:20.4]} 36... Qe3+ {[%clk 0:00:16.6]} 37. Kh1 {[%clk
0:00:21]} 37... Qf2 {[%clk 0:00:16.3]} 38. Qg5+ {[%clk 0:00:21]} 38... Kc8
{[%clk 0:00:15.5]} 39. Qg4+ {[%clk 0:00:20.3]} 39... Kd8 {[%clk 0:00:14.5]} 40.
Qg1 {[%clk 0:00:21.2]} 40... Qf3+ {[%clk 0:00:13]} 41. Qg2 {[%clk 0:00:21.7]}
41... Qxf4 {[%clk 0:00:13]} 42. Rxe2 {[%clk 0:00:21.8]} 42... Qc1+ {[%clk
0:00:12.8]} 43. Qg1 {[%clk 0:00:18.2]} 43... Qxg1+ {[%clk 0:00:12.9]} 44. Kxg1
{[%clk 0:00:19.1]} 44... Rxe2 {[%clk 0:00:12.6]} 0-1

[Event "*** Titled Tuesday Blitz"]
[Site "Chess.com"]
[Date "2020.05.26"]
[Round "8"]
[White "miroslavsavic"]
[Black "krasavetc"]
[Result "0-1"]
[WhiteElo "2057"]
[BlackElo "2254"]
[TimeControl "180+1"]
[EndTime "11:41:18 PDT"]
[Termination "krasavetc won by checkmate"]

1. Nf3 {[%clk 0:03:00.9]} 1... Nf6 {[%clk 0:02:59.5]} 2. c4 {[%clk 0:02:59.1]}
2... g6 {[%clk 0:02:58.8]} 3. Nc3 {[%clk 0:02:58.2]} 3... Bg7 {[%clk 0:02:59.7]}
4. e4 {[%clk 0:02:57.3]} 4... d6 {[%clk 0:02:59.2]} 5. d4 {[%clk 0:02:57.2]}
5... O-O {[%clk 0:02:59.4]} 6. Be2 {[%clk 0:02:57.8]} 6... c5 {[%clk 0:02:57.3]}
7. O-O {[%clk 0:02:51.9]} 7... cxd4 {[%clk 0:02:56.3]} 8. Nxd4 {[%clk
0:02:51.5]} 8... Nc6 {[%clk 0:02:56.6]} 9. Be3 {[%clk 0:02:49.5]} 9... a6 {[%clk
0:02:51]} 10. f3 {[%clk 0:02:39.5]} 10... Bd7 {[%clk 0:02:48.7]} 11. Rc1 {[%clk
0:02:35.4]} 11... Ne5 {[%clk 0:02:46.8]} 12. h3 {[%clk 0:02:24.8]} 12... Rc8
{[%clk 0:02:42.2]} 13. b3 {[%clk 0:02:24.2]} 13... Nc6 {[%clk 0:02:39.3]} 14.
Qd2 {[%clk 0:02:14.5]} 14... Qa5 {[%clk 0:02:33]} 15. Rfd1 {[%clk 0:02:01.2]}
15... Qh5 {[%clk 0:02:30.8]} 16. f4 {[%clk 0:01:44.6]} 16... Qa5 {[%clk
0:02:24.8]} 17. Bf3 {[%clk 0:01:31.7]} 17... Rfd8 {[%clk 0:02:11.6]} 18. g4
{[%clk 0:01:18.3]} 18... e5 {[%clk 0:02:05.7]} 19. Nxc6 {[%clk 0:01:01.7]} 19...
bxc6 {[%clk 0:01:57.5]} 20. f5 {[%clk 0:00:51.7]} 20... Be8 {[%clk 0:01:26.2]}
21. g5 {[%clk 0:00:35.6]} 21... Nh5 {[%clk 0:01:16.2]} 22. Bxh5 {[%clk 0:00:34]}
22... gxh5 {[%clk 0:01:16.2]} 23. f6 {[%clk 0:00:26.6]} 23... Bf8 {[%clk
0:01:15.5]} 24. Qe2 {[%clk 0:00:25.8]} 24... Bd7 {[%clk 0:00:46]} 25. Qxh5
{[%clk 0:00:24.8]} 25... Be6 {[%clk 0:00:46.2]} 26. h4 {[%clk 0:00:22.9]} 26...
d5 {[%clk 0:00:31.6]} 27. cxd5 {[%clk 0:00:17.3]} 27... cxd5 {[%clk 0:00:30.5]}
28. Nxd5 {[%clk 0:00:16.3]} 28... Rxc1 {[%clk 0:00:24.9]} 29. Rxc1 {[%clk
0:00:13.6]} 29... Bxd5 {[%clk 0:00:23.8]} 30. exd5 {[%clk 0:00:13.2]} 30... Qxd5
{[%clk 0:00:23.9]} 31. Qe2 {[%clk 0:00:12.3]} 31... Qe4 {[%clk 0:00:20.5]} 32.
Rc4 {[%clk 0:00:09.6]} 32... Qb1+ {[%clk 0:00:17.1]} 33. Rc1 {[%clk 0:00:09.4]}
33... Qf5 {[%clk 0:00:15.1]} 34. Rf1 {[%clk 0:00:07.9]} 34... Qe4 {[%clk
0:00:15.3]} 35. Qf3 {[%clk 0:00:07.5]} 35... Qxh4 {[%clk 0:00:11.6]} 36. Rd1
{[%clk 0:00:04]} 36... Rxd1+ {[%clk 0:00:08.1]} 37. Qxd1 {[%clk 0:00:03.6]}
37... Qg3+ {[%clk 0:00:09]} 38. Kf1 {[%clk 0:00:03]} 38... Qxe3 {[%clk
0:00:08.8]} 39. Qh5 {[%clk 0:00:03.9]} 39... Qf4+ {[%clk 0:00:08]} 40. Ke2
{[%clk 0:00:03.5]} 40... e4 {[%clk 0:00:08]} 41. Ke1 {[%clk 0:00:02.6]} 41...
Bb4+ {[%clk 0:00:06.9]} 42. Kd1 {[%clk 0:00:01.9]} 42... Qd2# {[%clk 0:00:06.7]}
0-1